[Event "*** SCC Grand Prix: Titled Tuesday Blitz"]
[Site "Chess.com"]
[Date "2020.07.21"]
[Round "6"]
[White "13MiRacLe"]
[Black "MF1966Idrisov"]
[Result "0-1"]
[WhiteElo "2620"]
[BlackElo "2365"]
[TimeControl "180+1"]
[EndTime "11:08:53 PDT"]
[Termination "MF1966Idrisov won on time"]

1. e4 {[%clk 0:03:00.9]} 1... d5 {[%clk 0:02:59.6]} 2. exd5 {[%clk 0:03:01]}
2... Qxd5 {[%clk 0:03:00.2]} 3. Nc3 {[%clk 0:03:01.1]} 3... Qd6 {[%clk
0:03:00.8]} 4. d4 {[%clk 0:03:01.7]} 4... a6 {[%clk 0:03:01.4]} 5. Nf3 {[%clk
0:03:00.8]} 5... Nf6 {[%clk 0:03:01.8]} 6. g3 {[%clk 0:02:57.4]} 6... e6 {[%clk
0:02:54.6]} 7. Bg2 {[%clk 0:02:56.8]} 7... Nc6 {[%clk 0:02:54.2]} 8. O-O {[%clk
0:02:54.9]} 8... Be7 {[%clk 0:02:53.7]} 9. Bf4 {[%clk 0:02:49.9]} 9... Qd8
{[%clk 0:02:53.4]} 10. Qe2 {[%clk 0:02:47]} 10... O-O {[%clk 0:02:53]} 11. Rad1
{[%clk 0:02:46.1]} 11... Re8 {[%clk 0:02:52.8]} 12. Ne5 {[%clk 0:02:44.7]} 12...
Bd7 {[%clk 0:02:45.3]} 13. Qc4 {[%clk 0:02:29.1]} 13... Bd6 {[%clk 0:02:13.4]}
14. Nxc6 {[%clk 0:02:13.3]} 14... Bxc6 {[%clk 0:02:11.5]} 15. Bxc6 {[%clk
0:02:12.5]} 15... bxc6 {[%clk 0:02:09.8]} 16. Bg5 {[%clk 0:02:09.6]} 16... Qb8
{[%clk 0:01:55.3]} 17. Bxf6 {[%clk 0:01:59.7]} 17... gxf6 {[%clk 0:01:55.3]} 18.
b3 {[%clk 0:01:39.6]} 18... Qb6 {[%clk 0:01:44.5]} 19. a4 {[%clk 0:01:38.7]}
19... a5 {[%clk 0:01:41.1]} 20. Ne4 {[%clk 0:01:38.2]} 20... Be7 {[%clk
0:01:38]} 21. Rfe1 {[%clk 0:01:34.9]} 21... Red8 {[%clk 0:01:37.8]} 22. h4
{[%clk 0:01:17.1]} 22... Rd5 {[%clk 0:01:36.4]} 23. Rd3 {[%clk 0:00:39.9]} 23...
Rad8 {[%clk 0:01:35.2]} 24. Red1 {[%clk 0:00:39.8]} 24... R8d7 {[%clk
0:01:07.7]} 25. Qc3 {[%clk 0:00:39.4]} 25... Rd8 {[%clk 0:01:00.5]} 26. Qd2
{[%clk 0:00:34.8]} 26... f5 {[%clk 0:01:00.7]} 27. Nc3 {[%clk 0:00:27.2]} 27...
R5d6 {[%clk 0:00:55.9]} 28. Ne2 {[%clk 0:00:27.2]} 28... Bf6 {[%clk 0:00:54.5]}
29. Qh6 {[%clk 0:00:14.3]} 29... Bg7 {[%clk 0:00:53.8]} 30. Qg5 {[%clk
0:00:14.8]} 30... h6 {[%clk 0:00:52]} 31. Qf4 {[%clk 0:00:15.1]} 31... Qb4
{[%clk 0:00:48.9]} 32. Qe3 {[%clk 0:00:14.6]} 32... Qb6 {[%clk 0:00:48.1]} 33.
Kg2 {[%clk 0:00:11.4]} 33... R6d7 {[%clk 0:00:46.6]} 34. Qd2 {[%clk 0:00:03.9]}
34... Qb7 {[%clk 0:00:44.1]} 35. Kg1 {[%clk 0:00:03.1]} 35... Qb6 {[%clk
0:00:44.1]} 36. Qc3 {[%clk 0:00:03.5]} 36... Rd5 {[%clk 0:00:43.7]} 37. Qc4
{[%clk 0:00:03.8]} 37... R5d6 {[%clk 0:00:42.9]} 38. Qc3 {[%clk 0:00:04.4]}
38... Rd5 {[%clk 0:00:42.8]} 39. Qd2 {[%clk 0:00:05.1]} 39... R5d6 {[%clk
0:00:42.6]} 40. Qf4 {[%clk 0:00:05.6]} 40... R6d7 {[%clk 0:00:42]} 41. Qc1
{[%clk 0:00:03.4]} 41... Rd6 {[%clk 0:00:40.5]} 42. Qb2 {[%clk 0:00:03.8]} 42...
c5 {[%clk 0:00:39.2]} 43. dxc5 {[%clk 0:00:02.6]} 43... Rxd3 {[%clk 0:00:39.1]}
44. Rxd3 {[%clk 0:00:01.7]} 44... Rxd3 {[%clk 0:00:38.4]} 45. cxd3 {[%clk
0:00:02]} 45... Qxc5 {[%clk 0:00:37.1]} 46. d4 {[%clk 0:00:02.3]} 46... Qd5
{[%clk 0:00:36]} 47. Qc3 {[%clk 0:00:02.2]} 47... c6 {[%clk 0:00:35.4]} 48. Kf1
{[%clk 0:00:02.4]} 48... Qh1+ {[%clk 0:00:34.4]} 49. Ng1 {[%clk 0:00:02.9]}
49... Qe4 {[%clk 0:00:34]} 50. Ne2 {[%clk 0:00:02]} 50... f4 {[%clk 0:00:32.5]}
51. gxf4 {[%clk 0:00:02]} 51... Qh1+ {[%clk 0:00:32.4]} 52. Ng1 {[%clk
0:00:02.2]} 52... Qxh4 {[%clk 0:00:31.9]} 53. Qxc6 {[%clk 0:00:02.6]} 53... Bxd4
{[%clk 0:00:30.6]} 54. Qa8+ {[%clk 0:00:01.1]} 54... Kg7 {[%clk 0:00:29.9]} 55.
Qg2+ {[%clk 0:00:01.7]} 55... Kf6 {[%clk 0:00:28.9]} 56. Qf3 {[%clk 0:00:01.8]}
56... Kg7 {[%clk 0:00:24.2]} 57. Ne2 {[%clk 0:00:02.4]} 57... Bf6 {[%clk
0:00:22.5]} 58. Qg3+ {[%clk 0:00:02.9]} 58... Kf8 {[%clk 0:00:21.9]} 59. Qxh4
{[%clk 0:00:02.9]} 59... Bxh4 {[%clk 0:00:21.8]} 60. Nd4 {[%clk 0:00:03.4]}
60... Bf6 {[%clk 0:00:20.4]} 61. Nc6 {[%clk 0:00:03]} 61... Bc3 {[%clk
0:00:20.3]} 62. Ke2 {[%clk 0:00:03.7]} 62... h5 {[%clk 0:00:19.9]} 63. Kd3
{[%clk 0:00:04.5]} 63... Be1 {[%clk 0:00:19.4]} 64. Ke2 {[%clk 0:00:04.6]} 64...
Bc3 {[%clk 0:00:18.9]} 65. Kf3 {[%clk 0:00:05.2]} 65... Kg7 {[%clk 0:00:17.6]}
66. Kg3 {[%clk 0:00:05.4]} 66... Kg6 {[%clk 0:00:17.5]} 67. Ne7+ {[%clk
0:00:04]} 67... Kf6 {[%clk 0:00:16.9]} 68. Nc6 {[%clk 0:00:04.6]} 68... Kf5
{[%clk 0:00:16.8]} 69. Ne7+ {[%clk 0:00:05]} 69... Ke4 {[%clk 0:00:16.6]} 70.
Nc6 {[%clk 0:00:05.6]} 70... Kd3 {[%clk 0:00:16.1]} 71. Nd8 {[%clk 0:00:04.3]}
71... Kc2 {[%clk 0:00:12.6]} 72. Nxf7 {[%clk 0:00:04.8]} 72... Kxb3 {[%clk
0:00:12.3]} 73. Nd8 {[%clk 0:00:05.6]} 73... e5 {[%clk 0:00:09.7]} 74. f5 {[%clk
0:00:05.4]} 74... Kxa4 {[%clk 0:00:09.1]} 75. f6 {[%clk 0:00:05.4]} 75... Bb4
{[%clk 0:00:07.4]} 76. Nc6 {[%clk 0:00:04.2]} 76... Bc5 {[%clk 0:00:06.3]} 77.
f7 {[%clk 0:00:02.5]} 77... Kb5 {[%clk 0:00:05.4]} 78. Nxe5 {[%clk 0:00:03]}
78... a4 {[%clk 0:00:04.6]} 0-1

[Event "*** SCC Grand Prix: Titled Tuesday Blitz"]
[Site "Chess.com"]
[Date "2020.07.21"]
[Round "6"]
[White "ikhasu"]
[Black "blitzking1729"]
[Result "1/2-1/2"]
[WhiteElo "2390"]
[BlackElo "2574"]
[TimeControl "180+1"]
[EndTime "11:08:57 PDT"]
[Termination "Game drawn - insufficient material"]

1. e4 {[%clk 0:03:00.4]} 1... d6 {[%clk 0:02:52.6]} 2. d4 {[%clk 0:02:56.9]}
2... Nf6 {[%clk 0:02:52.9]} 3. Nc3 {[%clk 0:02:54.7]} 3... e5 {[%clk 0:02:53]}
4. dxe5 {[%clk 0:02:50.6]} 4... dxe5 {[%clk 0:02:53.9]} 5. Qxd8+ {[%clk
0:02:51]} 5... Kxd8 {[%clk 0:02:53.9]} 6. Bc4 {[%clk 0:02:50.5]} 6... Be6 {[%clk
0:02:53.1]} 7. Bxe6 {[%clk 0:02:50.5]} 7... fxe6 {[%clk 0:02:54]} 8. Nf3 {[%clk
0:02:50.2]} 8... Bd6 {[%clk 0:02:54.9]} 9. Bg5 {[%clk 0:02:44.9]} 9... a6 {[%clk
0:02:53.5]} 10. O-O-O {[%clk 0:02:44.6]} 10... Ke7 {[%clk 0:02:53.3]} 11. Kb1
{[%clk 0:02:38.6]} 11... b5 {[%clk 0:02:46.7]} 12. Ne2 {[%clk 0:02:38.2]} 12...
h6 {[%clk 0:02:45.8]} 13. Bh4 {[%clk 0:02:34.3]} 13... g5 {[%clk 0:02:41.7]} 14.
Bg3 {[%clk 0:02:34.2]} 14... Nxe4 {[%clk 0:02:40.2]} 15. Bxe5 {[%clk 0:02:33.1]}
15... Rd8 {[%clk 0:02:32.6]} 16. Bd4 {[%clk 0:02:22.9]} 16... Nc6 {[%clk
0:02:30.9]} 17. Be3 {[%clk 0:02:22.5]} 17... Rf8 {[%clk 0:02:30.4]} 18. h3
{[%clk 0:02:21.3]} 18... Bc5 {[%clk 0:02:19.4]} 19. Bxc5+ {[%clk 0:02:18]} 19...
Nxc5 {[%clk 0:02:20.3]} 20. Ned4 {[%clk 0:02:18.1]} 20... Nxd4 {[%clk
0:02:18.2]} 21. Rxd4 {[%clk 0:02:17.8]} 21... Rad8 {[%clk 0:02:17.2]} 22. Rhd1
{[%clk 0:02:15.8]} 22... Rxd4 {[%clk 0:02:16.3]} 23. Rxd4 {[%clk 0:02:15.3]}
23... Nb7 {[%clk 0:02:13.5]} 24. a4 {[%clk 0:02:00.1]} 24... Nd6 {[%clk
0:02:11]} 25. axb5 {[%clk 0:01:58.1]} 25... axb5 {[%clk 0:02:11.9]} 26. b3
{[%clk 0:01:47.7]} 26... Rf5 {[%clk 0:02:09.7]} 27. Kb2 {[%clk 0:01:45.5]} 27...
c5 {[%clk 0:02:08.7]} 28. Rd2 {[%clk 0:01:42.6]} 28... h5 {[%clk 0:02:08.1]} 29.
Re2 {[%clk 0:01:42.1]} 29... b4 {[%clk 0:01:54.5]} 30. Ne5 {[%clk 0:01:39.3]}
30... Nb5 {[%clk 0:01:51.5]} 31. Nd3 {[%clk 0:01:37.2]} 31... Nc3 {[%clk
0:01:47.6]} 32. Re1 {[%clk 0:01:37.2]} 32... Kd6 {[%clk 0:01:43.4]} 33. Ra1
{[%clk 0:01:34.6]} 33... g4 {[%clk 0:01:40.9]} 34. hxg4 {[%clk 0:01:34.1]} 34...
hxg4 {[%clk 0:01:41.8]} 35. Ra6+ {[%clk 0:01:33.4]} 35... Ke7 {[%clk 0:01:38.6]}
36. Kc1 {[%clk 0:01:20.2]} 36... Ne4 {[%clk 0:01:35.5]} 37. Ra7+ {[%clk
0:00:56]} 37... Kf6 {[%clk 0:01:30]} 38. Ra8 {[%clk 0:00:54.1]} 38... Rh5 {[%clk
0:01:25.7]} 39. f3 {[%clk 0:00:49.4]} 39... Rh1+ {[%clk 0:01:24.5]} 40. Kb2
{[%clk 0:00:48.1]} 40... Nc3 {[%clk 0:01:22.3]} 41. Ra1 {[%clk 0:00:47.1]} 41...
Nd1+ {[%clk 0:01:14.5]} 42. Ka2 {[%clk 0:00:47.2]} 42... g3 {[%clk 0:00:53.1]}
43. Nxc5 {[%clk 0:00:43.2]} 43... Kf5 {[%clk 0:00:46.7]} 44. Ne4 {[%clk
0:00:30.3]} 44... Kf4 {[%clk 0:00:45.4]} 45. Rc1 {[%clk 0:00:28]} 45... Rg1
{[%clk 0:00:23.9]} 46. Ka1 {[%clk 0:00:27.5]} 46... e5 {[%clk 0:00:21.1]} 47. c4
{[%clk 0:00:22.7]} 47... bxc3 {[%clk 0:00:20.6]} 48. Nxc3 {[%clk 0:00:21.5]}
48... Rxg2 {[%clk 0:00:19.6]} 49. Rxd1 {[%clk 0:00:20.9]} 49... Rf2 {[%clk
0:00:15.8]} 50. Nd5+ {[%clk 0:00:14.5]} 50... Kxf3 {[%clk 0:00:14.9]} 51. Rd3+
{[%clk 0:00:09]} 51... Ke4 {[%clk 0:00:12.5]} 52. Rxg3 {[%clk 0:00:08.2]} 52...
Kxd5 {[%clk 0:00:12.6]} 53. Kb1 {[%clk 0:00:08.5]} 53... e4 {[%clk 0:00:12.6]}
54. Kc1 {[%clk 0:00:08.9]} 54... Kd4 {[%clk 0:00:13]} 55. Kd1 {[%clk 0:00:08]}
55... Rb2 {[%clk 0:00:10.6]} 56. Ke1 {[%clk 0:00:07.3]} 56... e3 {[%clk
0:00:07.7]} 57. Rg8 {[%clk 0:00:07.3]} 57... Rb1+ {[%clk 0:00:07.1]} 58. Ke2
{[%clk 0:00:07.4]} 58... Rb2+ {[%clk 0:00:08]} 59. Ke1 {[%clk 0:00:08]} 59...
Rxb3 {[%clk 0:00:08.2]} 60. Rd8+ {[%clk 0:00:07.7]} 60... Ke4 {[%clk 0:00:08.3]}
61. Re8+ {[%clk 0:00:08.1]} 61... Kd3 {[%clk 0:00:07.9]} 62. Rd8+ {[%clk
0:00:08.6]} 62... Kc2 {[%clk 0:00:08.1]} 63. Rc8+ {[%clk 0:00:08.9]} 63... Rc3
{[%clk 0:00:07.4]} 64. Rxc3+ {[%clk 0:00:07.8]} 64... Kxc3 {[%clk 0:00:08.3]}
65. Ke2 {[%clk 0:00:08.4]} 65... Kd4 {[%clk 0:00:09.1]} 66. Ke1 {[%clk
0:00:08.2]} 66... Ke4 {[%clk 0:00:09]} 67. Ke2 {[%clk 0:00:08.6]} 67... Kf4
{[%clk 0:00:09.4]} 68. Ke1 {[%clk 0:00:09.2]} 68... Kf3 {[%clk 0:00:09.7]} 69.
Kf1 {[%clk 0:00:09.6]} 69... e2+ {[%clk 0:00:10.1]} 70. Ke1 {[%clk 0:00:10.2]}
70... Ke4 {[%clk 0:00:10.5]} 71. Kxe2 {[%clk 0:00:10.1]} 1/2-1/2

[Event "*** SCC Grand Prix: Titled Tuesday Blitz"]
[Site "Chess.com"]
[Date "2020.07.21"]
[Round "6"]
[White "Undisputed92"]
[Black "MergenKakabaev"]
[Result "1/2-1/2"]
[WhiteElo "2642"]
[BlackElo "2503"]
[TimeControl "180+1"]
[EndTime "11:08:58 PDT"]
[Termination "Game drawn by repetition"]

1. e4 {[%clk 0:03:00.9]} 1... e5 {[%clk 0:02:59.5]} 2. Nf3 {[%clk 0:03:00.1]}
2... Nc6 {[%clk 0:02:59.4]} 3. Bb5 {[%clk 0:02:59.8]} 3... a6 {[%clk 0:02:57.4]}
4. Ba4 {[%clk 0:02:59.7]} 4... Nf6 {[%clk 0:02:56.1]} 5. O-O {[%clk 0:02:59.5]}
5... Be7 {[%clk 0:02:54.2]} 6. Re1 {[%clk 0:02:59.6]} 6... b5 {[%clk 0:02:52]}
7. Bb3 {[%clk 0:02:59.5]} 7... d6 {[%clk 0:02:52.2]} 8. c3 {[%clk 0:02:59]} 8...
O-O {[%clk 0:02:51.2]} 9. d4 {[%clk 0:02:59.1]} 9... Bg4 {[%clk 0:02:50.2]} 10.
Be3 {[%clk 0:02:57.3]} 10... exd4 {[%clk 0:02:43.5]} 11. cxd4 {[%clk 0:02:58.2]}
11... Na5 {[%clk 0:02:43.5]} 12. Bc2 {[%clk 0:02:57.4]} 12... c5 {[%clk
0:02:39.2]} 13. d5 {[%clk 0:02:51.7]} 13... Nc4 {[%clk 0:02:33.9]} 14. Bc1
{[%clk 0:02:51.7]} 14... Nd7 {[%clk 0:02:32.2]} 15. h3 {[%clk 0:02:51]} 15...
Bh5 {[%clk 0:02:31.5]} 16. Nbd2 {[%clk 0:02:47.8]} 16... Nxd2 {[%clk 0:02:22.3]}
17. Bxd2 {[%clk 0:02:47.7]} 17... Bf6 {[%clk 0:02:22.8]} 18. Rb1 {[%clk
0:02:45.2]} 18... Ne5 {[%clk 0:02:20.9]} 19. g4 {[%clk 0:02:44.9]} 19... Bg6
{[%clk 0:02:19.2]} 20. Nxe5 {[%clk 0:02:43.7]} 20... Bxe5 {[%clk 0:01:55.5]} 21.
f4 {[%clk 0:02:43]} 21... Bd4+ {[%clk 0:01:53.8]} 22. Kg2 {[%clk 0:02:42.5]}
22... f6 {[%clk 0:01:54.3]} 23. a4 {[%clk 0:02:23.6]} 23... Qb6 {[%clk
0:01:48.8]} 24. Bc3 {[%clk 0:02:18.9]} 24... Bxc3 {[%clk 0:01:41.2]} 25. bxc3
{[%clk 0:02:19.8]} 25... c4 {[%clk 0:01:37.4]} 26. Qd2 {[%clk 0:02:10.6]} 26...
Rfe8 {[%clk 0:01:36.3]} 27. Qf2 {[%clk 0:02:09.1]} 27... Qa5 {[%clk 0:01:29.3]}
28. Qd4 {[%clk 0:02:04.9]} 28... Re7 {[%clk 0:01:29.2]} 29. Rb4 {[%clk
0:01:48.8]} 29... Rae8 {[%clk 0:01:24.2]} 30. f5 {[%clk 0:01:48.3]} 30... Bf7
{[%clk 0:01:23.6]} 31. Reb1 {[%clk 0:01:46.6]} 31... h5 {[%clk 0:00:18.9]} 32.
axb5 {[%clk 0:01:42.6]} 32... axb5 {[%clk 0:00:19.8]} 33. Rxb5 {[%clk
0:01:42.9]} 33... Qa2 {[%clk 0:00:20.4]} 34. R5b2 {[%clk 0:01:42.6]} 34... Qa6
{[%clk 0:00:20.4]} 35. Rb6 {[%clk 0:01:41.7]} 35... Qa2 {[%clk 0:00:20.1]} 36.
R6b2 {[%clk 0:01:40.4]} 36... Qa6 {[%clk 0:00:19.9]} 37. Qb6 {[%clk 0:01:40.6]}
37... Qxb6 {[%clk 0:00:18.2]} 38. Rxb6 {[%clk 0:01:40.4]} 38... Bxd5 {[%clk
0:00:18.3]} 39. exd5 {[%clk 0:01:23.1]} 39... Re2+ {[%clk 0:00:19.2]} 40. Kg3
{[%clk 0:01:16.1]} 40... Rxc2 {[%clk 0:00:17.1]} 41. Rb8 {[%clk 0:01:15.5]}
41... Rxc3+ {[%clk 0:00:16.7]} 42. Kh4 {[%clk 0:01:15.1]} 42... Rxb8 {[%clk
0:00:14.6]} 43. Rxb8+ {[%clk 0:01:16]} 43... Kh7 {[%clk 0:00:14]} 44. Rd8 {[%clk
0:01:12.9]} 44... hxg4 {[%clk 0:00:13.1]} 45. hxg4 {[%clk 0:01:12.5]} 45... Rc1
{[%clk 0:00:12.3]} 46. Kg3 {[%clk 0:01:07.8]} 46... c3 {[%clk 0:00:12.5]} 47.
Kg2 {[%clk 0:01:07.8]} 47... c2 {[%clk 0:00:11.9]} 48. Rc8 {[%clk 0:01:05.8]}
48... Kh6 {[%clk 0:00:12.2]} 49. Rc4 {[%clk 0:01:04]} 49... Kg5 {[%clk
0:00:12.1]} 50. Kh2 {[%clk 0:01:04]} 50... Kh4 {[%clk 0:00:11.8]} 51. Kg2 {[%clk
0:01:03.5]} 51... Rd1 {[%clk 0:00:11.5]} 52. Rxc2 {[%clk 0:01:02.7]} 52... Kxg4
{[%clk 0:00:11.9]} 53. Rc7 {[%clk 0:01:02]} 53... Rd2+ {[%clk 0:00:10.4]} 54.
Kf1 {[%clk 0:01:01.5]} 54... Kxf5 {[%clk 0:00:10.8]} 55. Rxg7 {[%clk 0:01:00.7]}
55... Rxd5 {[%clk 0:00:11.4]} 56. Ke2 {[%clk 0:01:01.1]} 56... Ra5 {[%clk
0:00:10.9]} 57. Rg8 {[%clk 0:01:00.3]} 57... d5 {[%clk 0:00:10.6]} 58. Ke3
{[%clk 0:01:00.3]} 58... Ke5 {[%clk 0:00:09.5]} 59. Re8+ {[%clk 0:01:00.2]}
59... Kd6 {[%clk 0:00:09.8]} 60. Rd8+ {[%clk 0:00:58.6]} 60... Ke7 {[%clk
0:00:09.9]} 61. Rb8 {[%clk 0:00:57.2]} 61... Ra4 {[%clk 0:00:10.3]} 62. Rb6
{[%clk 0:00:56.8]} 62... Kf7 {[%clk 0:00:10.5]} 63. Rd6 {[%clk 0:00:56.4]} 63...
Re4+ {[%clk 0:00:10]} 64. Kf3 {[%clk 0:00:54.3]} 64... Rc4 {[%clk 0:00:10]} 65.
Rxd5 {[%clk 0:00:53.8]} 65... Kg6 {[%clk 0:00:10.3]} 66. Ra5 {[%clk 0:00:53.3]}
66... Rb4 {[%clk 0:00:10]} 67. Kg3 {[%clk 0:00:53]} 67... f5 {[%clk 0:00:09.3]}
68. Kf3 {[%clk 0:00:53.3]} 68... Kg5 {[%clk 0:00:09.6]} 69. Ra8 {[%clk
0:00:51.4]} 69... Rb3+ {[%clk 0:00:09.9]} 70. Kf2 {[%clk 0:00:51.2]} 70... Kg4
{[%clk 0:00:10.3]} 71. Kg2 {[%clk 0:00:37.7]} 71... Rb2+ {[%clk 0:00:10]} 72.
Kf1 {[%clk 0:00:37.4]} 72... f4 {[%clk 0:00:09.5]} 73. Ra3 {[%clk 0:00:37.1]}
73... Rc2 {[%clk 0:00:08.6]} 74. Rb3 {[%clk 0:00:36]} 74... Rh2 {[%clk
0:00:08.2]} 75. Ra3 {[%clk 0:00:35.6]} 75... Rh1+ {[%clk 0:00:08.4]} 76. Kf2
{[%clk 0:00:35.2]} 76... Rc1 {[%clk 0:00:08.3]} 77. Rb3 {[%clk 0:00:34.6]} 77...
Rc2+ {[%clk 0:00:08]} 78. Kf1 {[%clk 0:00:34.8]} 78... f3 {[%clk 0:00:08.9]} 79.
Rb8 {[%clk 0:00:34.3]} 79... Kg3 {[%clk 0:00:08.9]} 80. Rg8+ {[%clk 0:00:33.6]}
80... Kf4 {[%clk 0:00:09]} 81. Rf8+ {[%clk 0:00:33.7]} 81... Kg3 {[%clk
0:00:09.6]} 82. Rg8+ {[%clk 0:00:33.7]} 82... Kf4 {[%clk 0:00:09.9]} 83. Rf8+
{[%clk 0:00:33.9]} 83... Kg3 {[%clk 0:00:10.1]} 84. Rg8+ {[%clk 0:00:34.3]}
1/2-1/2

[Event "*** SCC Grand Prix: Titled Tuesday Blitz"]
[Site "Chess.com"]
[Date "2020.07.21"]
[Round "6"]
[White "NormWeinstein"]
[Black "CaspiIsrael"]
[Result "1-0"]
[WhiteElo "2470"]
[BlackElo "2614"]
[TimeControl "180+1"]
[EndTime "11:09:12 PDT"]
[Termination "NormWeinstein won by resignation"]

1. e4 {[%clk 0:02:59.3]} 1... e5 {[%clk 0:02:59.4]} 2. Nf3 {[%clk 0:02:59.2]}
2... Nc6 {[%clk 0:02:59]} 3. Bb5 {[%clk 0:02:59.6]} 3... g6 {[%clk 0:02:59.4]}
4. O-O {[%clk 0:02:57.8]} 4... Bg7 {[%clk 0:02:59.5]} 5. c3 {[%clk 0:02:57.3]}
5... a6 {[%clk 0:02:59]} 6. Ba4 {[%clk 0:02:56.1]} 6... b5 {[%clk 0:02:59.2]} 7.
Bb3 {[%clk 0:02:55.5]} 7... d6 {[%clk 0:02:57.7]} 8. d4 {[%clk 0:02:55]} 8...
exd4 {[%clk 0:02:56.6]} 9. cxd4 {[%clk 0:02:52.9]} 9... Bg4 {[%clk 0:02:56.1]}
10. Nc3 {[%clk 0:02:05.9]} 10... Nxd4 {[%clk 0:02:47]} 11. Be3 {[%clk
0:01:50.4]} 11... Bxf3 {[%clk 0:02:46.4]} 12. gxf3 {[%clk 0:01:47.9]} 12... Nxb3
{[%clk 0:02:46.9]} 13. Qxb3 {[%clk 0:01:46.5]} 13... Ne7 {[%clk 0:02:47.2]} 14.
a4 {[%clk 0:01:42.8]} 14... c6 {[%clk 0:02:42.2]} 15. axb5 {[%clk 0:01:40.2]}
15... axb5 {[%clk 0:02:41.9]} 16. Rxa8 {[%clk 0:01:36.6]} 16... Qxa8 {[%clk
0:02:42.8]} 17. Rd1 {[%clk 0:01:35.7]} 17... Qb8 {[%clk 0:02:29.9]} 18. Qb4
{[%clk 0:01:30.1]} 18... Nc8 {[%clk 0:02:10.7]} 19. Bf4 {[%clk 0:01:12.3]} 19...
O-O {[%clk 0:02:09.9]} 20. Bxd6 {[%clk 0:01:10.7]} 20... Nxd6 {[%clk 0:02:09.7]}
21. Qxd6 {[%clk 0:01:10.3]} 21... Qc8 {[%clk 0:02:01.7]} 22. Qd7 {[%clk
0:01:08.9]} 22... Qa6 {[%clk 0:01:53.2]} 23. Rd6 {[%clk 0:01:08.4]} 23... b4
{[%clk 0:01:52.7]} 24. Nd1 {[%clk 0:01:04.6]} 24... Qe2 {[%clk 0:01:49.7]} 25.
Kg2 {[%clk 0:00:57.8]} 25... c5 {[%clk 0:01:47.5]} 26. Rd2 {[%clk 0:00:51]}
26... Qa6 {[%clk 0:01:35.3]} 27. Ne3 {[%clk 0:00:50.2]} 27... Bd4 {[%clk
0:01:34.8]} 28. Nd5 {[%clk 0:00:48.5]} 28... Qe6 {[%clk 0:01:26]} 29. Qxe6
{[%clk 0:00:35.5]} 29... fxe6 {[%clk 0:01:25.8]} 30. Ne7+ {[%clk 0:00:33.3]}
30... Kf7 {[%clk 0:01:24.8]} 31. Nc6 {[%clk 0:00:33.7]} 31... e5 {[%clk
0:01:19.8]} 32. Rc2 {[%clk 0:00:30.5]} 32... b3 {[%clk 0:00:49.1]} 33. Rd2
{[%clk 0:00:24]} 33... g5 {[%clk 0:00:41.1]} 34. Kg3 {[%clk 0:00:17]} 34... Rc8
{[%clk 0:00:40]} 35. Nxd4 {[%clk 0:00:15.4]} 35... cxd4 {[%clk 0:00:40.2]} 36.
Rd3 {[%clk 0:00:15.5]} 36... Rb8 {[%clk 0:00:39.9]} 37. h4 {[%clk 0:00:15.5]}
37... h6 {[%clk 0:00:39.8]} 38. hxg5 {[%clk 0:00:15.5]} 38... hxg5 {[%clk
0:00:40.7]} 39. Kg4 {[%clk 0:00:15.5]} 39... Kg6 {[%clk 0:00:40.7]} 40. Rd1
{[%clk 0:00:15.7]} 40... Rc8 {[%clk 0:00:25.1]} 41. Rd3 {[%clk 0:00:14.8]} 41...
Rb8 {[%clk 0:00:24.8]} 42. Rd1 {[%clk 0:00:13.8]} 42... Rb5 {[%clk 0:00:20.2]}
43. Rd3 {[%clk 0:00:12]} 43... Kf6 {[%clk 0:00:20.6]} 44. Rd1 {[%clk 0:00:11.6]}
44... Rb7 {[%clk 0:00:19.8]} 45. Rd3 {[%clk 0:00:11.4]} 45... Rb8 {[%clk
0:00:19.9]} 46. Rd1 {[%clk 0:00:11]} 46... Rh8 {[%clk 0:00:19.6]} 47. Rd3 {[%clk
0:00:10.5]} 47... Rh2 {[%clk 0:00:16.7]} 48. Kg3 {[%clk 0:00:10.3]} 48... Rh1
{[%clk 0:00:15.7]} 49. Rxb3 {[%clk 0:00:10.7]} 49... Rg1+ {[%clk 0:00:15.7]} 50.
Kh2 {[%clk 0:00:10.4]} 50... Rb1 {[%clk 0:00:10.1]} 51. Rb6+ {[%clk 0:00:09.3]}
51... Ke7 {[%clk 0:00:10.3]} 52. Kg3 {[%clk 0:00:08.5]} 52... d3 {[%clk
0:00:09.4]} 53. Rb7+ {[%clk 0:00:05.9]} 53... Ke6 {[%clk 0:00:09]} 54. Rb6+
{[%clk 0:00:05.7]} 54... Kf7 {[%clk 0:00:06.4]} 55. Rb7+ {[%clk 0:00:05.3]}
55... Kg6 {[%clk 0:00:06.3]} 56. Rb6+ {[%clk 0:00:05.1]} 56... Kh5 {[%clk
0:00:05.4]} 57. Rd6 {[%clk 0:00:05.5]} 57... Rxb2 {[%clk 0:00:05.7]} 58. Rxd3
{[%clk 0:00:05.2]} 58... Rb1 {[%clk 0:00:06.2]} 59. Rd8 {[%clk 0:00:05.2]} 59...
Rb5 {[%clk 0:00:05.6]} 60. Rf8 {[%clk 0:00:04.5]} 60... Rc5 {[%clk 0:00:05.4]}
61. Rf6 {[%clk 0:00:04.5]} 61... Rc1 {[%clk 0:00:05.2]} 62. Re6 {[%clk
0:00:04.4]} 62... Rg1+ {[%clk 0:00:05.6]} 63. Kh2 {[%clk 0:00:04.5]} 63... Rf1
{[%clk 0:00:06]} 64. Rxe5 {[%clk 0:00:04.9]} 64... Rxf2+ {[%clk 0:00:05.7]} 65.
Kg3 {[%clk 0:00:05.3]} 65... Ra2 {[%clk 0:00:06.6]} 66. Re8 {[%clk 0:00:04.9]}
66... Ra3 {[%clk 0:00:06.7]} 67. Rg8 {[%clk 0:00:05.3]} 67... Kh6 {[%clk
0:00:06.6]} 68. Rf8 {[%clk 0:00:05]} 68... Ra5 {[%clk 0:00:06.6]} 69. Rf5 {[%clk
0:00:05.2]} 69... Ra1 {[%clk 0:00:07]} 70. e5 {[%clk 0:00:04.8]} 70... Kg6
{[%clk 0:00:07.2]} 71. Rf6+ {[%clk 0:00:05.3]} 71... Kg7 {[%clk 0:00:07.4]} 72.
Kg4 {[%clk 0:00:05.7]} 72... Rg1+ {[%clk 0:00:07.2]} 73. Kf5 {[%clk 0:00:06]}
73... Re1 {[%clk 0:00:07.1]} 74. Rg6+ {[%clk 0:00:06.4]} 74... Kf7 {[%clk
0:00:07.3]} 75. Rxg5 {[%clk 0:00:06.9]} 75... Rf1 {[%clk 0:00:07.4]} 76. f4
{[%clk 0:00:07.3]} 76... Ke7 {[%clk 0:00:07.8]} 77. Rh5 {[%clk 0:00:07.5]} 77...
Kf7 {[%clk 0:00:07.9]} 78. Rh7+ {[%clk 0:00:07.8]} 78... Kg8 {[%clk 0:00:08]}
79. Ra7 {[%clk 0:00:08.2]} 79... Rb1 {[%clk 0:00:07.4]} 80. Kf6 {[%clk
0:00:07.3]} 80... Rf1 {[%clk 0:00:06.6]} 81. f5 {[%clk 0:00:06.8]} 81... Rh1
{[%clk 0:00:06.9]} 82. e6 {[%clk 0:00:06.9]} 82... Rh6+ {[%clk 0:00:06.4]} 83.
Kg5 {[%clk 0:00:07.3]} 83... Rh1 {[%clk 0:00:06.6]} 84. Kf6 {[%clk 0:00:06.9]}
84... Rh6+ {[%clk 0:00:06.5]} 85. Kg5 {[%clk 0:00:07.3]} 85... Rh1 {[%clk
0:00:07.4]} 86. f6 {[%clk 0:00:07.3]} 86... Rg1+ {[%clk 0:00:07.5]} 87. Kh4
{[%clk 0:00:07.5]} 87... Rh1+ {[%clk 0:00:07.5]} 88. Kg3 {[%clk 0:00:07.6]}
88... Re1 {[%clk 0:00:07.6]} 89. Ra8+ {[%clk 0:00:05.5]} 89... Kh7 {[%clk
0:00:07.8]} 90. f7 {[%clk 0:00:05.4]} 90... Rxe6 {[%clk 0:00:04.9]} 91. f8=Q
{[%clk 0:00:04.3]} 91... Rg6+ {[%clk 0:00:05.4]} 92. Kf4 {[%clk 0:00:03.6]} 1-0